Cogmind - Beta 9.1 @@@ ROGUE MODE // 2019.10.30 @ 17:50:56 Player: Snowflake Result: Destroyed by C-40 Crusher with Compactor Performance ------------- Evolutions (3) 1500 Regions Visited (6) 1200 Robots Destroyed (90) 450 Value Destroyed (2757) 2757 Prototype IDs (6) 120 Alien Tech Used (0) 0 Bonus (105) 105 TOTAL SCORE: 6132 Bonus ------- Follower Combat Kills 105 Cogmind --------- Core Integrity 0/700 Matter 244/300 Energy 100/100 System Corruption 0% Temperature Cool (0) Location -7/Waste Parts ------- Power (1) Propulsion (4) Utility (6) Weapon (2) Inventory (4) Light Deuterium Engine Compact Battery (300) Heavy Laser Heavy Hammer Peak State ------------ Power Light Nuclear Core Propulsion Aluminum Leg Carbon-fiber Leg Carbon-fiber Leg Flexi-carbon Leg Utility Improved Heat Sink High-capacity Storage Unit High-capacity Storage Unit High-capacity Storage Unit Advanced Visual Processing Unit Targeting Computer Weapon Flak Gun EMP Blaster Inventory Light Deuterium Engine Light Nuclear Core Light Nuclear Core Light Nuclear Core Aluminum Leg Aluminum Leg Aluminum Leg Aluminum Leg Aluminum Leg Thermal Converter High-capacity Storage Unit High-capacity Storage Unit Compact Battery Sensor Array Armor Integrity Analyzer Particle Charger Reflective Plating Shock Rifle Heavy Laser Heavy Ion Cannon Heavy Assault Rifle Minigun Minigun Flak Gun Rocket Launcher Mini Grenade Launcher Heavy Hammer [Rating: 37] Favorites ----------- Power Light Nuclear Core Engine Improved Ion Engine Power Core Light Nuclear Core Propulsion Aluminum Leg Leg Aluminum Leg Utility High-capacity Storage Unit Device Sensor Array Storage High-capacity Storage Unit Processor Terrain Scan Processor Protection Medium Armor Plating Weapon Light Assault Rifle Energy Gun Beamcaster Energy Cannon Light EM Pulse Cannon Ballistic Gun Light Assault Rifle Ballistic Cannon Light Cannon Launcher EMP Blaster Impact Weapon Heavy Hammer Build | -11 -10 -9 -9 -8 -7 -7 ------- Run | Scr Mat Mat Min Mat Fac Was Slots Evolved 6 | . . 2 . 2 2 . Power . | . . . . . . . Propulsion 2 | . . . . 2 . . Utility 4 | . . 2 . . 2 . Weapon . | . . . . . . . Parts Attached 114 | 6 10 35 6 45 11 1 Power 15 | 1 2 4 1 7 . . Engine 11 | 1 2 4 1 3 . . Core 4 | . . . . 4 . . Reactor . | . . . . . . . Propulsion 29 | 2 2 5 2 15 3 . Treads . | . . . . . . . Leg 29 | 2 2 5 2 15 3 . Wheel . | . . . . . . . Hover . | . . . . . . . Flight . | . . . . . . . Utility 21 | 1 3 10 1 3 3 . Device 3 | . . 2 . . 1 . Storage 9 | 1 1 4 1 2 . . Processor 5 | . . 3 . 1 1 . Hackware . | . . . . . . . Protection 4 | . 2 1 . . 1 . Artifact . | . . . . . . . Weapon 49 | 2 3 16 2 20 5 1 Energy Gun 14 | 1 1 1 . 10 1 . Energy Cannon 3 | . . 1 1 . . 1 Ballistic Gun 16 | 1 2 7 . 4 2 . Ballistic Cannon 2 | . . 2 . . . . Launcher 3 | . . . 1 1 1 . Special Weapon . | . . . . . . . Impact Weapon 11 | . . 5 . 5 1 . Slashing Weapon . | . . . . . . . Piercing Weapon . | . . . . . . . Special Melee Weapon . | . . . . . . . Unidentified Prototypes 1 | . . 1 . . . . Parts Lost 30 | . 1 6 2 12 3 6 Power 6 | . . 1 1 3 . 1 Propulsion 8 | . . 1 1 3 1 2 Utility 6 | . 1 2 . . 1 2 Weapon 10 | . . 2 . 6 1 1 Highest Loss Streak 6 | . 1 2 1 3 2 6 Average Slot Usage (%) 98 | . 98 99 99 99 98 94 Engine 7 | . 14 11 11 2 . . Core 2 | . . . . 5 7 6 Leg 27 | . 28 21 21 35 29 28 Device 3 | . . 7 . . 7 6 Storage 22 | . 14 16 29 27 23 21 Processor 10 | . . 14 14 9 8 14 Protection 3 | . 13 5 . . 4 . Energy Gun 2 | . . . . 8 1 . Energy Cannon 3 | . . . 10 3 . 6 Ballistic Gun 10 | . 26 12 11 4 9 . Impact Weapon 2 | . . 5 . 1 1 . Naked Turns 9 | . . . . . . 9 Heaviest Build 113 | 11 46 78 110 110 113 113 Greatest Support 63 | 20 20 23 20 63 60 60 Greatest Overweight (x) 33 | 1 2 3 5 2 2 33 Average Overweight (x) 2 | . 1 1 4 1 1 1 Largest Inventory Capacity 28 | 6 12 20 28 28 28 28 Average Capacity 21 | 5 11 13 25 28 28 26 Most Carried 28 | 3 12 17 25 28 28 27 Average Carried 19 | 1 10 12 19 27 27 25 Final Capacity 28 | 6 12 20 28 28 28 4 Final Carried 28 | 3 12 17 25 28 27 4 Class Distribution -------------------- 50% | Scavenger-Mutant 35% | Hauler-Mutant 14% | Mutant Dominant Class ---------------- Scavenger-Mutant | -10/Materials Scavenger-Mutant | -9/Materials Hauler-Mutant | -9/Mines Hauler-Mutant | -8/Materials Scavenger-Mutant | -7/Factory Scavenger-Mutant | -7/Waste Resources | -11 -10 -9 -9 -8 -7 -7 ----------- Run | Scr Mat Mat Min Mat Fac Was Matter Collected 2102 | 243 241 675 186 554 203 . Remotely . | . . . . . . . Salvage Created 3319 | 50 353 909 362 1268 377 . Parts 174 | . 24 59 17 59 15 . Haulers Intercepted . | . . . . . . . Recyclers Shooed 5 | . 2 2 . 1 . . Parts Field Recycled . | . . . . . . . Retrieved Matter . | . . . . . . . Parts Self-Destructed . | . . . . . . . Prevented . | . . . . . . . Kills | -11 -10 -9 -9 -8 -7 -7 ------- Run | Scr Mat Mat Min Mat Fac Was Combat Hostiles Destroyed 74 | . 12 24 11 21 6 . Melee 3 | . . 3 . . . . Guns 51 | . 12 13 4 19 3 . Cannons 13 | . . 5 6 2 . . AOE 4 | . . . 1 . 3 . Classes Destroyed 13 | 1 3 4 2 3 . . Worker 1 | . . . . 1 . . Builder 4 | . . 2 . . 2 . Tunneler 1 | . . . 1 . . . Recycler 2 | 1 . 1 . . . . Mechanic 2 | . . . . 1 1 . Operator 3 | . 1 1 . 1 . . Watcher 3 | . . 2 . 1 . . Swarmer 16 | . 6 7 3 . . . Grunt 38 | . 6 11 4 13 4 . Brawler 2 | . . 1 1 . . . Sentry 13 | . . 5 . 6 2 . Hunter 2 | . . . . 2 . . Assembled 3 | . . . 3 . . . Best Kill Streak 7 | 1 6 6 5 4 7 . Combat Bots Only 6 | . 6 4 5 4 4 . Max Kills in Single Turn 6 | 1 1 1 1 1 6 . Gunslinging . | . . . . . . . Exploded 3 | . . . 1 . 3 . Melee 1 | . . 1 . . . . Uniques/NPCs Destroyed . | . . . . . . . Combat | -11 -10 -9 -9 -8 -7 -7 -------- Run | Scr Mat Mat Min Mat Fac Was Damage Taken 5367 | . 432 1351 325 1837 755 667 Core 1375 | . 58 217 64 311 148 577 Absorbed by Shields . | . . . . . . . Core Remaining (%) 62 | 100 76 . 29 43 . . Volleys Fired 271 | 2 37 72 27 90 33 10 Largest 2 | 1 2 2 2 2 2 2 Hottest 140 | 20 60 79 79 140 73 98 Shots Fired 492 | 2 74 141 50 170 43 12 Gun 393 | 2 74 96 26 159 36 . Cannon 88 | . . 45 23 10 . 10 Launcher 11 | . . . 1 1 7 2 Special . | . . . . . . . Kinetic 318 | 2 69 131 26 60 30 . Thermal 73 | . . . . 63 . 10 Explosive 1 | . . . 1 . . . Electromagnetic 100 | . 5 10 23 47 13 2 Robot Hit Streak 18 | 2 16 12 15 18 11 8 Robot Miss Streak 6 | . 2 4 6 4 3 2 Penetration Max . | . . . . . . . Secondary Targets 3 | . . . . 3 . . Max Gunslinging Chain 1 | . . . . 1 . . Shots Hit Robots 350 | 2 51 101 32 115 40 9 Core Hits 157 | 1 24 38 17 51 24 2 Critical Hits 1 | . . . . 1 . . Critical Kills 1 | . . . . 1 . . Critical Parts Destroyed . | . . . . . . . Melee Attacks 117 | . . 62 . 43 12 . Impact 117 | . . 62 . 43 12 . Slashing . | . . . . . . . Piercing . | . . . . . . . Sneak Attacks 2 | . . 1 . 1 . . Combat Hostiles . | . . . . . . . Follow-up Attacks . | . . . . . . . Damage Inflicted 6582 | 25 479 1651 636 2023 1496 272 Guns 3629 | 25 479 667 214 1721 523 . Cannons 1208 | . . 463 356 120 . 269 Explosions 1176 | . . . 66 134 973 3 Melee 569 | . . 521 . 48 . . Ramming . | . . . . . . . Kinetic 2793 | 25 467 1105 214 519 463 . Thermal 1821 | . . . . 926 626 269 Explosive 66 | . . . 66 . . . Electromagnetic 1333 | . 12 25 356 530 407 3 Impact 569 | . . 521 . 48 . . Slashing . | . . . . . . . Piercing . | . . . . . . . Highest Corruption 2 | . . 2 2 . . . Average Corruption 2 | . . 2 2 . . . Corruption Purged . | . . . . . . . Effects 13 | . . 5 8 . . . Message Errors 6 | . . 2 4 . . . Heat Flow Errors 2 | . . . 2 . . . Energy Discharges 1 | . . . 1 . . . Data Loss (minor) 2 | . . 2 . . . . Targeting Errors 2 | . . 1 1 . . . Overload Shots . | . . . . . . . Overflow Damage 254 | . . 111 5 49 89 . Projectiles 10 | . . 5 5 . . . Explosions 110 | . . . . 21 89 . Melee 134 | . . 106 . 28 . . Knockbacks 6 | . . 6 . . . . Impact 3 | . . 3 . . . . Kinetic 3 | . . 3 . . . . Secondary . | . . . . . . . Self-Inflicted Damage 34 | . . . 12 22 . . Shots 3 | . . . 1 2 . . Rammed . | . . . . . . . Targets Rammed . | . . . . . . . Kicked . | . . . . . . . Crushed . | . . . . . . . Highest Temperature 582 | . 45 92 205 582 4 . Average Temperature 85 | . 11 20 69 140 4 . Received Heat Transfer 1803 | . 162 498 54 783 306 . Effects 10 | . . . . 10 . . Shutdowns 1 | . . . . 1 . . Energy Bleed 1 | . . . . 1 . . Interference 2 | . . . . 2 . . Short Circuit 1 | . . . . 1 . . Damage (major) 4 | . . . . 4 . . Damage (core) 1 | . . . . 1 . . Siege Activations . | . . . . . . . Robots Corrupted . | . . . . . . . Combat Hostiles . | . . . . . . . Parts Fried 14 | . . 7 1 4 2 . Impact Corruptions 7 | . . 6 . 1 . . Robots Melted . | . . . . . . . Combat Hostiles . | . . . . . . . Parts Melted 4 | . . . . 4 . . Heat Transferred 2709 | . . . . 1789 550 370 Parts Sabotaged . | . . . . . . . Parts Stolen . | . . . . . . . Parts Stripped . | . . . . . . . Power Chain Reactions 3 | . . . . 2 1 . Missiles Intercepted . | . . . . . . . Alert | -11 -10 -9 -9 -8 -7 -7 ------- Run | Scr Mat Mat Min Mat Fac Was Peak Influence 334 | 5 257 237 171 334 201 61 Average Influence 109 | 1 138 98 76 117 157 47 Maximum Alert Level 1 | . 1 1 . 1 1 . Low Security (%) 87 | . . . . . . . Level 1 12 | . . . . . . . Level 2 . | . . . . . . . Level 3 . | . . . . . . . Level 4 . | . . . . . . . Level 5 . | . . . . . . . High Security . | . . . . . . . Max Security . | . . . . . . . Squads Dispatched 13 | . 2 2 . 7 2 . Investigation 3 | . 1 . . 2 . . Extermination . | . . . . . . . Reinforcement 9 | . 1 2 . 5 1 . Assault 1 | . . . . . 1 . Garrison . | . . . . . . . Intercept . | . . . . . . . Construction Impeded 2 | . . . . 1 1 . Haulers Reinforced . | . . . . . . . Stealth | -11 -10 -9 -9 -8 -7 -7 --------- Run | Scr Mat Mat Min Mat Fac Was Distress Signals 7 | . . 4 . 3 . . Communications Jammed . | . . . . . . . Distress Signals . | . . . . . . . Times Spotted 123 | . 14 40 10 45 9 5 Peak Tracking Total 7 | . 6 7 3 6 4 5 Tactical Retreats 10 | . . 3 . 7 . . Traps | -11 -10 -9 -9 -8 -7 -7 ------- Run | Scr Mat Mat Min Mat Fac Was Traps Triggered 3 | . 1 . . 1 1 . Indirectly . | . . . . . . . Trap Hack Attempts . | . . . . . . . Triggered . | . . . . . . . Disarmed . | . . . . . . . Reprogrammed . | . . . . . . . Reused . | . . . . . . . Traps Extracted . | . . . . . . . Installed . | . . . . . . . Triggered . | . . . . . . . Machines | -11 -10 -9 -9 -8 -7 -7 ---------- Run | Scr Mat Mat Min Mat Fac Was Machines Disabled 6 | . . 1 . 1 4 . Max in Single Turn 4 | . . 1 . . 4 . Garrison Access 1 | . . . . . 1 . Machines Sabotaged . | . . . . . . . Garrisons Compromised . | . . . . . . . Overloaded Fab Kills . | . . . . . . . Fab Network Shutdowns . | . . . . . . . Hacking | -11 -10 -9 -9 -8 -7 -7 --------- Run | Scr Mat Mat Min Mat Fac Was Machines Accessed 20 | . 5 6 . 8 1 . Terminals 17 | . 5 4 . 7 1 . Fabricators . | . . . . . . . Repair Stations 1 | . . . . 1 . . Recycling Units 1 | . . 1 . . . . Scanalyzers 1 | . . 1 . . . . Garrison Access . | . . . . . . . Total Hacks 72 | . 15 22 . 33 2 . Successful 48 | . 8 17 . 23 . . Failed 24 | . 7 5 . 10 2 . Catastrophic 1 | . . . . . 1 . Database Lockouts . | . . . . . . . Manual 40 | . 10 6 . 22 2 . Terminals 54 | . 15 13 . 24 2 . Fabricators . | . . . . . . . Repair Stations 9 | . . . . 9 . . Recycling Units 2 | . . 2 . . . . Scanalyzers 7 | . . 7 . . . . Garrison Access . | . . . . . . . Terminal Hacks 15 | . 3 4 . 8 . . Part Schematic 1 | . 1 . . . . . Prototype ID Bank 3 | . 1 2 . . . . Emergency Access Points 1 | . . . . 1 . . Unreport Threat 1 | . . 1 . . . . Locate Traps 1 | . 1 . . . . . Recall Reinforcements 3 | . . . . 3 . . Zone Layout 5 | . . 1 . 4 . . Fabricator Hacks . | . . . . . . . Repair Station Hacks 8 | . . . . 8 . . Scan Component 4 | . . . . 4 . . Repair 4 | . . . . 4 . . Recycling Unit Hacks 2 | . . 2 . . . . Report Inventory 1 | . . 1 . . . . Retrieve Components 1 | . . 1 . . . . Scanalyzer 7 | . . 7 . . . . Insert Component 4 | . . 4 . . . . Analyze 3 | . . 3 . . . . Garrison Access Hacks . | . . . . . . . Unauthorized Hacks 39 | . 13 9 . 17 . . Terminals 16 | . 5 4 . 7 . . Botnet 16 | . 5 4 . 7 . . Fabricators . | . . . . . . . Repair Stations . | . . . . . . . Recycling Units . | . . . . . . . Scanalyzers . | . . . . . . . Garrison Access . | . . . . . . . Data Cores Recovered 2 | . 1 1 . . . . Used 1 | . 1 . . . . . Hacking Detections 18 | . 4 6 . 7 1 . Full Trace Events . | . . . . . . . Feedback Events . | . . . . . . . Feedback Blocked . | . . . . . . . Robot Schematics Acquired . | . . . . . . . Robots Built . | . . . . . . . Matter . | . . . . . . . Time . | . . . . . . . Total Robot Build Rating . | . . . . . . . Part Schematics Acquired 3 | . 1 2 . . . . Parts Built . | . . . . . . . Matter . | . . . . . . . Time . | . . . . . . . Total Part Build Rating . | . . . . . . . Parts Repaired 4 | . . . . 4 . . Time 140 | . . . . 140 . . Parts Recycled . | . . . . . . . Recycled Matter . | . . . . . . . Retrieved Matter . | . . . . . . . Retrieved Components 1 | . . 1 . . . . Parts Scanalyzed 3 | . . 3 . . . . Part Schematics Acquired 2 | . . 2 . . . . Parts Damaged . | . . . . . . . Bothacking | -11 -10 -9 -9 -8 -7 -7 ------------ Run | Scr Mat Mat Min Mat Fac Was Used RIF Installer . | . . . . . . . Robots Hacked . | . . . . . . . Non-combat . | . . . . . . . Combat . | . . . . . . . Robot Hacks Applied . | . . . . . . . Relay Couplers Released 3 | . . . . . 3 . Machine Destruction 3 | . . . . . 3 . Robots Rewired . | . . . . . . . Allies Hacked . | . . . . . . . Hacks Repelled . | . . . . . . . Allies | -11 -10 -9 -9 -8 -7 -7 -------- Run | Scr Mat Mat Min Mat Fac Was Total Allies 6 | . . . 5 . . 1 Largest Group 3 | . . . 3 3 . 1 Highest-Rated Group 44 | . . . 44 40 . 31 Highest-Rated Ally 31 | . . . 31 16 . 31 Total Orders 3 | . . . . 3 . . STAY 1 | . . . . 1 . . GOTO 2 | . . . . 2 . . Ally Attacks 49 | . . . 14 28 . 7 Total Damage 608 | . . . 165 316 . 127 Kills 6 | . . . 3 3 . . Allies Corrupted . | . . . . . . . Allies Melted . | . . . . . . . Intel | -11 -10 -9 -9 -8 -7 -7 ------- Run | Scr Mat Mat Min Mat Fac Was Robot Analysis Total . | . . . . . . . Derelict Logs Recovered . | . . . . . . . Drone Launches . | . . . . . . . Drone Recoveries . | . . . . . . . Exploration | -11 -10 -9 -9 -8 -7 -7 ------------- Run | Scr Mat Mat Min Mat Fac Was Turns Passed 6113 | 64 699 1676 992 1807 688 187 Spaces Moved 2393 | 33 318 645 363 666 267 101 Core 4 | 3 . . . . . 1 Treads . | . . . . . . . Legs 2389 | 30 318 645 363 666 267 100 Wheels . | . . . . . . . Hover . | . . . . . . . Flight . | . . . . . . . Fastest Speed 50 | 50 120 150 210 150 150 150 Average Speed 181 | 124 174 179 247 161 166 165 Slowest Speed 1700 | 150 180 210 270 180 180 1700 Overloaded Moves . | . . . . . . . Propulsion Burnouts . | . . . . . . . Robots Hopped . | . . . . . . . Cave-ins Triggered . | . . . . . . . Exploration Rate (%) 43 | 3 54 57 86 57 7 40 Regions Visited 6 Branch Regions 1 Pre-discovered Areas . | . . . . . . . Known Exits Taken 1 | . . 1 . . . . Unknown Exits Taken 4 | 1 1 . 1 1 . . Scrap Searched 1 | . . . 1 . . . Spaces Dug 53 | . . 28 . 22 3 . Terrain Destroyed 109 | . . 28 16 37 28 . Melee 53 | . . 28 . 22 3 . Projectile . | . . . . . . . AOE 56 | . . . 16 15 25 . Actions | -11 -10 -9 -9 -8 -7 -7 --------- Run | Scr Mat Mat Min Mat Fac Was Total 3472 | 51 395 907 414 1148 442 115 Wait 462 | 8 17 65 4 252 113 3 Move 2388 | 32 317 644 362 665 267 101 Hop . | . . . . . . . Pick Up 68 | 2 9 12 13 29 3 . Fast Attach 22 | 6 2 6 . 6 2 . Attach 29 | . 2 6 4 14 3 . Detach 4 | 1 1 . . 2 . . Swap 64 | . 6 24 2 25 6 1 Drop 47 | . 4 16 2 22 3 . Fire 271 | 2 37 72 27 90 33 10 Melee 117 | . . 62 . 43 12 . Ram . | . . . . . . . Kick . | . . . . . . . Crush . | . . . . . . . Escape Stasis . | . . . . . . . Rewire . | . . . . . . . Trap . | . . . . . . . Miscellaneous . | . . . . . . . Route ------- -11/Scrapyard -10/Materials (discovered 2 exits: *Mat / [*Min]) -9/Materials (discovered 2 exits: *Mat / *Min) -9/Mines (discovered 2 exits: *Mat x2) -8/Materials (discovered 2 exits: *Fac / [*Sto]) -7/Factory -7/Waste History --------- Turn | Location | Event 29 | -11/Scrapyard | Discovered new exit (range 15) 65 | -11/Scrapyard | Entered Materials 314 | -10/Materials | Build established: Mutant 375 | -10/Materials | Discovered new exit (range 12) 624 | -10/Materials | Discovered new exit (range 8) 687 | -10/Materials | Build established: Scavenger-Mutant 764 | -10/Materials | Entered another Materials area 764 | -9/Materials | Evolved 2 slots: Utility x2 1717 | -9/Materials | Discovered new exit (range 12) 1973 | -9/Materials | Discovered new exit (range 11) 2026 | -9/Materials | Identified exit to Mines 2283 | -9/Materials | Core integrity fell below 50% 2440 | -9/Materials | Entered Mines 2494 | -9/Mines | Discovered new exit (range 9) 2687 | -9/Mines | Received a Rocket Launcher from a helpful Derelict 2701 | -9/Mines | Build established: Hauler-Mutant 2888 | -9/Mines | Assembled infested the area 2893 | -9/Mines | Assisted by a Guerilla fighting off Assembled 3182 | -9/Mines | Assisted by bots powering up and referring to "LRC-V3" 3414 | -9/Mines | Discovered new exit (range 7) 3432 | -9/Mines | Entered Materials 3432 | -8/Materials | Accompanied by 3 allies 3432 | -8/Materials | Evolved 2 slots: Propulsion x2 4789 | -8/Materials | Core integrity fell below 50% 4837 | -8/Materials | Lost 3 parts (1p1n1w) 4952 | -8/Materials | Discovered new exit (range 7) 5039 | -8/Materials | Repaired Hcp. Storage Unit 5066 | -8/Materials | Repaired Hcp. Storage Unit 5109 | -8/Materials | Build established: Scavenger-Mutant 5117 | -8/Materials | Repaired Flexi-carbon Leg 5157 | -8/Materials | Repaired Lgt. Nuclear Core 5221 | -8/Materials | Discovered new exit (range 7) 5239 | -8/Materials | Entered Factory 5239 | -7/Factory | Evolved 2 slots: Utility x2 5927 | -7/Factory | Sucked down chute 5927 | -7/Factory | Entered Waste 5928 | -7/Waste | Met a frightened Derelict 5992 | -7/Waste | Spotted C-40 Crusher 6014 | -7/Waste | Spotted C-40 Crusher 6032 | -7/Waste | Spotted C-40 Crusher 6039 | -7/Waste | Spotted C-40 Crusher 6095 | -7/Waste | Spotted C-40 Crusher 6101 | -7/Waste | Crushed by Compactor (1 part destroyed, 2 dropped) 6104 | -7/Waste | Crushed by Compactor (1 part destroyed, 1 dropped) 6105 | -7/Waste | Crushed by Compactor (1 part destroyed, 2 dropped) 6105 | -7/Waste | Crushed by Compactor (1 part destroyed, 2 dropped) 6109 | -7/Waste | Core integrity fell below 50% 6114 | -7/Waste | Core integrity fell below 20% 6114 | -7/Waste | Destroyed by C-40 Crusher with Compactor Last Messages --------------- Sensor Array crushed. Lgt. Nuclear Core crushed. Imp. Heat Sink crushed. Targeting Computer crushed. Adv. Visual Processing Unit destroyed. Aluminum Leg crushed. Lgt. Nuclear Core crushed. Hcp. Storage Unit crushed. Flak Gun crushed. Aluminum Leg crushed. Hcp. Storage Unit crushed. Mni. Grenade Launcher crushed. Aluminum Leg crushed. Flak Gun crushed. Aluminum Leg crushed. Minigun crushed. Imp. Heat Sink crushed. Hvy. Ion Cannon crushed. Lgt. Nuclear Core crushed. Carbon-fiber Leg crushed. Map ----- +----------------------------------------------------+ | ??????????????????????????????????????????????? | | ??????????????????????????????????????????????? | | ??????????????????????????????????????????????? | | ??????????????????????????????????????????????? | | ??????????????????????????????????????????????? | | ??????????????????????????????????????????????? | | ??????????????????????????????????????????????? | | ??????????????????????????????????????????????? | | ??????????????????????????????????????????????? | | ??????????????????????????????????????????????? | | ??????????????????????????????????????????????? | | ??????????????????????????????????????????????? | | ??????????????????????????????????????????????? | | ??????????????????????????????????????????????? | | ??????????????????????????????????????????????? | | ??????????????????????????????????????????????? | | ???????????????????????????######?????????????? | | ???????????????????????????# #?????????????? | | ?????????????############??# #??????? ???? | | ?????????????# #??# #??????? #?? | | ?????????????# #??# #??????? #?? | | ?????????????# CC #### #??????? ##? | | ?????????????# CC #??????? ? | | ?????????????# CC!![ #??????? ?? | | ?????????????# CC!CC] #??????? ?? | | ?????????????# CC@CC= #??????? ?? | | ?????????????# CCCC#### #??????? #?? | | ?????????????# CC#??# #??????# #?? | | ?????????????# #??# #??????# #?? | | ?????????????############??# #??????# #?? | | ?????????????????????????### ######## ### | | ?????????????????????????# | | ?????????????????????????# | | ?????????????????????????# | | ?????????????????????????# " | | ?????????????????????????### ######## ### | | ???????????????????????????# #??????# #?? | | ???????????????????????????# #??????#% #?? | | ???????????????????????????# #??????#= #?? | | ?????????????????????????### ######## #?? | | ?????????????????????????# #?? | | ?????????????????????????# #?? | | ?????????????????????????# #?? | | ?????????????????????????# #?? | | ?????????????????????????### ######## #?? | | ???????????????????????????# #??????# #?? | | ???????????????????????????# #??????# #?? | | ???????????????????????????# #??????# #?? | | ???????????????????????????# #??????# #?? | | ???????????????????????????######??????######?? | +----------------------------------------------------+ Best States ------------- Heat Dissipation 48 Energy Generation 14 Energy Capacity 265 Matter Stores 300 Matter Capacity 300 Sight Range 20 Robot Scan Range 10 Terrain Scan Density 85 Armor Coverage 225 Evasion (%) 50 Targeting Accuracy 5 Item Schematics ----------------- Hcp. Storage Unit | -10/Materials | Hacked Hvy. Assault Rifle | -9/Materials | Scanalyzed Aluminum Leg | -9/Materials | Scanalyzed Robot Schematics ------------------ None Fabricated ------------ Nothing Alien Tech Used ----------------- None Achievements -------------- Dynamic Key Challenges ------------ None Game ------ Seed TiamatPulseMallet Manual? 0 Play Time 01:10:58 Cumulative 36.0 hours Start 2019.10.29 @ 20:24:13 End 2019.10.30 @ 17:50:56 Sessions 3 Manual Loads 0 Difficulty Rogue Special Mode None Game No. 11 Rogue -7 Adventurer 9 Explorer 0 Win Type - Total 0 Types 0/0/0/0/0/0/0 Lore% 24 Gallery% 33 Achievement% 30 Wizard Run 0 Options --------- ASCII 0 Keyboard 0 Movement Mouse Keybinds 1 Fullscreen 2 Font 18/X11Bold Map View 76x50 Tactical HUD 0 Map Filters NONE Filters NONE Steam 1 RUN: a27e6e97-8314-4b13-ba62-d1b6b5f83167